Cogmind - Beta 13 @@@ ROGUE MODE // 2024.05.03 @ 17:51:03 Player: ThatBishHoly Result: Destroyed by as-51034 with Assembled Heavy Rifle Performance ------------- Evolutions (0) 0 Regions Visited (4) 800 Robots Destroyed (4) 20 Value Destroyed (105) 105 Prototype IDs (2) 40 Alien Tech Used (0) 0 Bonus (218) 218 TOTAL SCORE: 1183 Bonus ------- Aligned with FarCom 300 Friendly Fire -82 Cogmind --------- Core Integrity 0/250 Matter 196/300 Energy 100/100 System Corruption 0% Temperature Warning (374) Movement Core (250) Ox4 Location -9/Mines Parts ------- > --- POWER (1) -------- (None) > --- PROPULSION (2) --- (None) > --- UTILITY (2) ------ Sensor Drone Bay (18/20) > --- WEAPON (2) ------- (None) > --- INVENTORY (5) ---- ECM Suite Bore Cannon Proton Bomb Trap Proton Bomb Trap Peak State ------------ > --- POWER ------------ Reinforced Ion Engine > --- PROPULSION ------- Aluminum Leg Aluminum Leg > --- UTILITY ---------- Sensor Array Sensor Drone Bay > --- WEAPON ----------- Firepult > --- INVENTORY -------- Ion Engine Humpback High-capacity Battery ECM Suite [Rating: 33] Favorites ----------- Power Ion Engine Engine Ion Engine Propulsion Aluminum Leg Leg Aluminum Leg Utility Sensor Array Device Sensor Array Weapon Firepult Energy Gun Medium Laser Energy Cannon Firepult Build | -11 -10 -10 -10 -9 ------- Run | Yrd Mat Min Exi Min Slots Evolved . | . . . . . Power . | . . . . . Propulsion . | . . . . . Utility . | . . . . . Weapon . | . . . . . Parts Attached 10 | 4 2 1 2 1 Power 2 | 1 . . . 1 Engine 2 | 1 . . . 1 Core . | . . . . . Reactor . | . . . . . Propulsion 3 | 2 . 1 . . Treads . | . . . . . Leg 3 | 2 . 1 . . Wheel . | . . . . . Hover . | . . . . . Flight . | . . . . . Utility 3 | . 2 . 1 . Device 3 | . 2 . 1 . Storage . | . . . . . Processor . | . . . . . Hackware . | . . . . . Protection . | . . . . . Artifact . | . . . . . Weapon 2 | 1 . . 1 . Energy Gun 1 | 1 . . . . Energy Cannon 1 | . . . 1 . Ballistic Gun . | . . . . . Ballistic Cannon . | . . . . . Launcher . | . . . . . Special Weapon . | . . . . . Impact Weapon . | . . . . . Slashing Weapon . | . . . . . Piercing Weapon . | . . . . . Special Melee Weapon . | . . . . . Unidentified Prototypes 2 | . . . 2 . Parts Lost 5 | . . . . 5 Power 1 | . . . . 1 Propulsion 2 | . . . . 2 Utility 1 | . . . . 1 Weapon 1 | . . . . 1 Highest Loss Streak 5 | . . . . 5 To Critical Strikes . | . . . . . Average Slot Usage (%) 84 | . 74 85 85 84 Engine 14 | . 14 14 14 14 Leg 27 | . 28 28 28 27 Device 27 | . 17 28 28 27 Energy Gun 6 | . 14 14 5 . Energy Cannon 7 | . . . 8 14 Naked Turns . | . . . . . Heaviest Build 47 | 7 10 10 42 47 Greatest Support 20 | 20 20 20 20 20 Greatest Overweight (x) 15 | . . . 2 15 Average Overweight (x) . | . . . . 2 Largest Inventory Capacity 5 | 5 5 5 5 5 Average Capacity 5 | 5 5 5 5 5 Most Carried 5 | 4 2 3 5 5 Average Carried 2 | . . 1 2 4 Final Capacity 5 | 5 5 5 5 5 Final Carried 4 | . 1 3 4 4 Class Distribution -------------------- 59% | Mutant 40% | Skirmisher Dominant Class ---------------- Mutant | -10/Materials Mutant | -10/Mines Mutant | -10/Exiles Skirmisher | -9/Mines Resources | -11 -10 -10 -10 -9 ----------- Run | Yrd Mat Min Exi Min Matter Collected 296 | 232 . 38 . 26 Remotely . | . . . . . Salvage Created 272 | . . 44 . 228 Parts 9 | . . 3 . 6 Haulers Intercepted . | . . . . . Recyclers Shooed 1 | . . 1 . . Parts Field Recycled . | . . . . . Retrieved Matter . | . . . . . Parts Self-Destructed . | . . . . . Prevented . | . . . . . Kills | -11 -10 -10 -10 -9 ------- Run | Yrd Mat Min Exi Min Combat Hostiles Destroyed 9 | . . 1 . 8 Guns 1 | . . 1 . . Cannons 2 | . . . . 2 AOE 6 | . . . . 6 Classes Destroyed 4 | . . 1 . 3 Worker 1 | . . . . 1 Grunt 2 | . . 1 . 1 Brawler 1 | . . . . 1 Assembled 6 | . . . . 6 Best Kill Streak 7 | . . 1 . 7 Combat Bots Only 6 | . . 1 . 6 Max Kills in Single Turn 3 | . . 1 . 3 Gunslinging . | . . . . . Exploded 2 | . . . . 2 Melee . | . . . . . Uniques/NPCs Destroyed . | . . . . . Combat | -11 -10 -10 -10 -9 -------- Run | Yrd Mat Min Exi Min Hostile Shots Fired 51 | . . 15 . 36 Missed 7 | . . 3 . 4 Damage Taken 693 | . . 132 . 561 Core 255 | . . 32 . 223 Absorbed by Shields . | . . . . . Core Remaining (%) 100 | 100 . . . . Volleys Fired 17 | . . 11 . 6 Largest 1 | . . 1 . 1 Hottest 250 | . . 50 . 250 Shots Fired 17 | . . 11 . 6 Gun 11 | . . 11 . . Cannon 6 | . . . . 6 Launcher . | . . . . . Special . | . . . . . Kinetic . | . . . . . Thermal 17 | . . 11 . 6 Explosive . | . . . . . Electromagnetic . | . . . . . Robot Hit Streak 3 | . . 3 . 1 Robot Miss Streak 8 | . . 6 . 8 Penetration Max . | . . . . . Secondary Targets . | . . . . . Shots Hit Robots 6 | . . 3 . 3 Core Hits 20 | . . 3 . 17 Critical Kills . | . . . . . Critical Parts Destroyed . | . . . . . Critical Strikes . | . . . . . Melee Attacks . | . . . . . Impact . | . . . . . Slashing . | . . . . . Piercing . | . . . . . Sneak Attacks . | . . . . . Combat Hostiles . | . . . . . Follow-up Attacks . | . . . . . Damage Inflicted 694 | . . 47 . 647 Guns 38 | . . 38 . . Cannons 132 | . . . . 132 Explosions 501 | . . . . 501 Melee . | . . . . . Ramming 23 | . . 9 . 14 Kinetic . | . . . . . Thermal 671 | . . 38 . 633 Explosive . | . . . . . Electromagnetic . | . . . . . Impact . | . . . . . Slashing . | . . . . . Piercing . | . . . . . Highest Corruption . | . . . . . Average Corruption . | . . . . . Corruption Purged . | . . . . . Corruption Blocked . | . . . . . Overload Shots . | . . . . . Overflow Damage 16 | . . . . 16 Projectiles . | . . . . . Explosions 16 | . . . . 16 Melee . | . . . . . Knockbacks 1 | . . . . 1 Impact 1 | . . . . 1 Kinetic . | . . . . . Secondary . | . . . . . Self-Inflicted Damage 46 | . . . . 46 Shots 5 | . . . . 5 Rammed . | . . . . . Targets Rammed 5 | . . 3 . 2 Kicked 5 | . . 3 . 2 Crushed . | . . . . . Highest Temperature 1059 | . . 52 . 1059 Average Temperature 375 | . . 18 . 519 Received Heat Transfer 232 | . . 72 . 160 Effects 29 | . . . . 29 Shutdowns 5 | . . . . 5 Energy Bleed 4 | . . . . 4 Interference 1 | . . . . 1 Matter Decay 2 | . . . . 2 Short Circuit 2 | . . . . 2 Damage (minor) 3 | . . . . 3 Damage (major) 10 | . . . . 10 Damage (core) 2 | . . . . 2 Siege Activations . | . . . . . Robots Corrupted . | . . . . . Combat Hostiles . | . . . . . Parts Fried . | . . . . . Impact Corruptions . | . . . . . Robots Melted . | . . . . . Combat Hostiles . | . . . . . Parts Melted 2 | . . . . 2 Heat Transferred 3631 | . . 111 . 3520 Parts Sabotaged . | . . . . . Parts Stolen . | . . . . . Parts Stripped . | . . . . . Power Chain Reactions . | . . . . . Alert | -11 -10 -10 -10 -9 ------- Run | Yrd Mat Min Exi Min Peak Influence 55 | . . 20 . 55 Initial . | . . . . . Average 14 | . . 6 . 21 Maximum Alert Level . | . . . . . Low Security (%) 100 | 100 100 100 . 100 Level 1 . | . . . . . Level 2 . | . . . . . Level 3 . | . . . . . Level 4 . | . . . . . Level 5 . | . . . . . High Security . | . . . . . Max Security . | . . . . . Squads Dispatched . | . . . . . Investigation . | . . . . . Extermination . | . . . . . Reinforcement . | . . . . . Assault . | . . . . . Garrison . | . . . . . Intercept . | . . . . . Searches Triggered . | . . . . . Construction Impeded . | . . . . . Haulers Reinforced . | . . . . . Active Scanning Responses . | . . . . . Cargo Convoy Interrupts . | . . . . . Stealth | -11 -10 -10 -10 -9 --------- Run | Yrd Mat Min Exi Min Distress Signals . | . . . . . Communications Jammed . | . . . . . Distress Signals . | . . . . . Times Spotted 21 | . . 3 . 18 Peak Tracking Total 11 | . . 2 . 11 Tactical Retreats 3 | . . 2 . 1 Traps | -11 -10 -10 -10 -9 ------- Run | Yrd Mat Min Exi Min Traps Triggered . | . . . . . Indirectly . | . . . . . Trap Hack Attempts . | . . . . . Triggered . | . . . . . Disarmed . | . . . . . Reprogrammed . | . . . . . Reused . | . . . . . Traps Extracted . | . . . . . Installed . | . . . . . Triggered . | . . . . . Most Traps Carried 2 | . . . . 2 Machines | -11 -10 -10 -10 -9 ---------- Run | Yrd Mat Min Exi Min Machines Disabled . | . . . . . Max in Single Turn . | . . . . . Machines Repaired . | . . . . . Machines Dismantled . | . . . . . Machines Sabotaged . | . . . . . Overloaded Fab Kills . | . . . . . Hacking | -11 -10 -10 -10 -9 --------- Run | Yrd Mat Min Exi Min Machines Accessed 2 | . 1 1 . . Terminals 1 | . 1 . . . Fabricators . | . . . . . Repair Stations . | . . . . . Recycling Units . | . . . . . Scanalyzers . | . . . . . Garrison Access . | . . . . . Total Hacks 2 | . 1 1 . . Successful 2 | . 1 1 . . Failed . | . . . . . Catastrophic . | . . . . . Database Lockouts . | . . . . . Manual 1 | . . . 1 . Terminals 1 | . 1 . . . Fabricators . | . . . . . Repair Stations . | . . . . . Recycling Units . | . . . . . Scanalyzers . | . . . . . Garrison Access . | . . . . . Terminal Hacks 2 | . 1 1 . . Open Door 1 | . . 1 . . Zone Layout 1 | . 1 . . . Fabricator Hacks . | . . . . . Repair Station Hacks . | . . . . . Recycling Unit Hacks . | . . . . . Scanalyzer . | . . . . . Garrison Access Hacks . | . . . . . Unauthorized Hacks . | . . . . . Terminals . | . . . . . Fabricators . | . . . . . Repair Stations . | . . . . . Recycling Units . | . . . . . Scanalyzers . | . . . . . Garrison Access . | . . . . . Data Cores Recovered . | . . . . . Used . | . . . . . Hacking Detections . | . . . . . Full Trace Events . | . . . . . Feedback Events . | . . . . . Feedback Blocked . | . . . . . Robot Schematics Acquired . | . . . . . Robots Built . | . . . . . Authchips . | . . . . . Time . | . . . . . Total Robot Build Rating . | . . . . . Part Schematics Acquired . | . . . . . Parts Built . | . . . . . Authchips . | . . . . . Time . | . . . . . Total Part Build Rating . | . . . . . Parts Repaired . | . . . . . Time . | . . . . . Parts Recycled . | . . . . . Recycled Matter . | . . . . . Retrieved Matter . | . . . . . Retrieved Components . | . . . . . Parts Scanalyzed . | . . . . . Part Schematics Acquired . | . . . . . Parts Damaged . | . . . . . Bothacking | -11 -10 -10 -10 -9 ------------ Run | Yrd Mat Min Exi Min Used RIF Installer . | . . . . . Robots Hacked . | . . . . . Non-combat . | . . . . . Combat . | . . . . . Robot Hacks Applied . | . . . . . Relay Couplers Released . | . . . . . Fabnet Peak Effective % . | . . . . . Robots Rewired . | . . . . . Allies Hacked . | . . . . . Hacks Repelled . | . . . . . Allies | -11 -10 -10 -10 -9 -------- Run | Yrd Mat Min Exi Min Total Allies . | . . . . . Largest Group . | . . . . . Highest-Rated Group . | . . . . . Highest-Rated Ally . | . . . . . Total Orders . | . . . . . Ally Attacks . | . . . . . Total Damage . | . . . . . Kills . | . . . . . Allies Corrupted . | . . . . . Allies Melted . | . . . . . Intel | -11 -10 -10 -10 -9 ------- Run | Yrd Mat Min Exi Min Robot Analysis Total . | . . . . . Derelict Logs Recovered 2 | . . 1 . 1 Drone Launches 20 | . . . . 20 Drone Recoveries 18 | . . . . 18 Exploration | -11 -10 -10 -10 -9 ------------- Run | Yrd Mat Min Exi Min Turns Passed 2528 | 48 118 713 602 1047 Spaces Moved 1424 | 44 95 565 342 378 Core 21 | 17 . . . 4 Treads . | . . . . . Legs 1403 | 27 95 565 342 374 Wheels . | . . . . . Hover . | . . . . . Flight . | . . . . . Fastest Speed 50 | 50 120 120 120 250 Average Speed 170 | 92 120 120 174 262 Slowest Speed 800 | 120 120 120 260 800 Overloaded Moves . | . . . . . Propulsion Burnouts . | . . . . . Robots Hopped . | . . . . . Cave-ins Triggered . | . . . . . Exploration Rate (%) 47 | 3 14 88 63 70 Regions Visited 4 Branch Regions 3 Pre-discovered Areas 1 | . . 1 . . Known Exits Taken . | . . . . . Unknown Exits Taken 4 | 1 1 1 1 . Scrap Searched 2 | . . 1 . 1 Spaces Dug . | . . . . . Terrain Destroyed 34 | . . . . 34 Melee . | . . . . . Projectile 1 | . . . . 1 AOE 33 | . . . . 33 Terrain Rammed . | . . . . . Walls Destroyed . | . . . . . Machines Disabled . | . . . . . Actions | -11 -10 -10 -10 -9 --------- Run | Yrd Mat Min Exi Min Total 1510 | 51 99 588 348 424 Wait 33 | . . 5 . 28 Move 1420 | 43 94 564 341 378 Hop . | . . . . . Pick Up 17 | 4 3 3 2 5 Fast Attach . | . . . . . Attach 7 | 4 2 . 1 . Detach . | . . . . . Swap 3 | . . 1 1 1 Drop 7 | . . 1 2 4 Fire 17 | . . 11 . 6 Melee . | . . . . . Ram . | . . . . . Kick 5 | . . 3 . 2 Crush . | . . . . . Escape Stasis . | . . . . . Rewire 1 | . . . 1 . Trap . | . . . . . Miscellaneous . | . . . . . Route ------- -11/Scrapyard -10/Materials -10/Mines (discovered 2 exits: [*Mat] / *Exi) -10/Exiles (discovered 2 exits: [*Min x2]) -9/Mines (discovered 1 exit: [*Mat]) History --------- Turn | Location | Event 3 | -11/Scrapyard | Discovered new exit (range 15) 49 | -11/Scrapyard | Entered Materials 90 | -10/Materials | Discovered new exit (range 13) 167 | -10/Materials | Entered Mines 168 | -10/Mines | Met a Derelict bent on vengeance 302 | -10/Mines | Build established: Mutant 536 | -10/Mines | Discovered new exit (range 5) 554 | -10/Mines | Found the Drone Emporium 560 | -10/Mines | Found Prototype Device 682 | -10/Mines | Learned location of Storage (-8) 871 | -10/Mines | Deemed a non-threat by the Exiles lab entrance 873 | -10/Mines | Discovered new exit (range 5) 880 | -10/Mines | Entered Exiles 913 | -10/Exiles | Discovered new exit (range 14) 952 | -10/Exiles | Met 8R-AWN 988 | -10/Exiles | Met EX-HEX 1059 | -10/Exiles | Met EX-BIN 1087 | -10/Exiles | Aligned with FarCom system 1088 | -10/Exiles | Given EX-Vault access code 1125 | -10/Exiles | Opened EX-Vault 1130 | -10/Exiles | Found Prototype Energy Cannon 1131 | -10/Exiles | Identified Firepult 1137 | -10/Exiles | Identified Sensor Drone Bay 1208 | -10/Exiles | Warned to stay clear of 0b10 Research branches 1281 | -10/Exiles | Met EX-DEC 1449 | -10/Exiles | Discovered new exit (range 14) 1482 | -10/Exiles | Left Exiles lab with Firepult 1482 | -10/Exiles | Entered Mines 1785 | -9/Mines | Build established: Skirmisher 2146 | -9/Mines | Found a hidden stash of uninstalled traps 2310 | -9/Mines | A weapon hastily lodged in a ceiling crevice suddenly fell to the ground 2467 | -9/Mines | Discovered new exit (range 15) 2476 | -9/Mines | Assembled infested the area 2502 | -9/Mines | Core integrity fell below 50% 2521 | -9/Mines | Core integrity fell below 20% 2529 | -9/Mines | Destroyed by as-51034 with Assembled Heavy Rifle Last Messages --------------- Bay. 02518_ Overheating: Energy bleed (-32). 02518_ Sensor Drone retrieved by Sensor Drone Bay. 02519_ Overheating: Sensor Drone Bay damaged (-20). 02519_ Sensor Drone retrieved by Sensor Drone Bay. 02521_ Power failure, Rnf. Ion Engine shutdown. 02521_ Sensor Drone retrieved by Sensor Drone Bay. 02522_ Rnf. Ion Engine destroyed. 02522_ Firepult destroyed. 02523_ Sensor Drone retrieved by Sensor Drone Bay. 02527_ Sensor Drone suffers critical hit (Destroy). 02527_ Sensor Drone destroyed. 02529_ Sensor Drone retrieved by Sensor Drone Bay. Map ----- +----------------------------------------------------+ | ???## ##???#] ##### | | ???# #????# #? | | ???# ##???# #? | | ???# ##?## ##? | | ???# ### ## #?? | | ???# ##?# ##?? | | ???# ##??# ##??? | | ???## ###### ##??###???? | | ????# ##????## #????????? | | ????# #??????# #????????? | | ????# ##?????# ##????????? | | ???## ##?????# #?????????? | | ???# ###???## a?????????? | | ???# ##???# ????????? | | ???## #???# ????????? | | ????### #???## ##???????? | | ??????## #????####????????? | | ???????## #????????????????? | | ????????#% #????????????????? | | ??????### #????????????????? | | ?????## a #????????????????? | | ????## a #????????????????? | | ##### ;#????????????????? | | #g n a ;##### ##?????????? | | #g a #????????? | | #g @ = #????????? | | ### %######a#????????? | | ??# a#???????????????? | | ?# #?????a?????????? | | ?# #???????????????? | | ?; < #??????a????????? | | ## a#???????????????? | | ?# ## #???????????????? | | ?# #####?a#???????????????? | | ?#; ?????? #???????????????? | | ?## ?????? #???????????????? | | ??; ?????? #???????????????? | | ??## ???????????????????????? | | ???##???????????????????????? | | ????????????????????????????? | | ????????????????????????????? | | ????????????????????????????? | | ????????????????????????????? | | ????????????????????????????? | | ????????????????????????????? | | ????????????????????????????? | | ????????????????????????????? | | ????????????????????????????? | | ????????????????????????????? | | ????????????????????????????? | +----------------------------------------------------+ Best States ------------- Heat Dissipation 25 Energy Generation 12 Energy Capacity 265 Matter Stores 300 Matter Capacity 300 Sight Range 16 Robot Scan Range 14 Terrain Scan Density 10 ECM Strength 1 Evasion (%) 55 Item Schematics ----------------- None Robot Schematics ------------------ None Fabricated ------------ Nothing Alien Tech Used ----------------- None Achievements -------------- None Challenges ------------ None Game ------ Seed AntigravSystemLog Manual? 0 Play Time 00:16:49 Cumulative 19.6 hours Start 2024.05.03 @ 17:36:08 End 2024.05.03 @ 17:51:03 Sessions 1 Manual Loads 0 Difficulty Rogue Special Mode None Game No. 59 Rogue 59 Adventurer 0 Explorer 0 Win Type - Total 0 Types 0/0/0/0/0/0/0/0/0 Lore% 13 Gallery% 29 Achievement% 22 Wizard Run 0 Options --------- Layout 1 ASCII 0 Keyboard 0 Movement Arrows Keybinds 0 Fullscreen 1 Font 16/SmallcapsGlow Map View 25x20 Zoom Use 100% Tactical HUD 1 Map Filters NONE Filters NONE Steam SD RUN: d74f4243-ef18-4457-8700-e9da939c062e